fUSD/lending_fUSD_20241224
["ID","MTS","AMOUNT","RATE_DAILY","PERIOD"]
[346502338,1735011114173,-4145.26,0.00015616,2]
[346502339,1735011114182,-2510.92,0.00015616,2]
[346502340,1735011114190,-2165.74,0.00015616,2]
[346502341,1735011114200,-4218.72,0.00015616,2]
[346502342,1735011114209,-2191.99,0.00015616,2]
[346502343,1735011114218,-2002.38,0.00015616,2]
[346502344,1735011114227,-500.0,0.00015616,2]
[346502345,1735011114236,-500.0,0.00015616,2]
[346502346,1735011114246,-683.71,0.00015616,2]
[346502347,1735011114255,-500.0,0.00015616,2]
[346502348,1735011114264,-500.0,0.00015616,2]
[346502349,1735011114273,-18977.0,0.00015616,2]
[346502350,1735011114282,-760.03,0.00015616,2]
[346502351,1735011114291,-1641.11,0.00015616,2]
[346502352,1735011114300,-500.0,0.00015616,2]
[346502353,1735011114309,-500.0,0.00015616,2]
[346502354,1735011114319,-500.0,0.00015616,2]
[346502355,1735011114328,-1764.49,0.00015616,2]
[346502356,1735011114338,-1150.83837441,0.00015644,2]
[346502357,1735011114347,-1082.31050602,0.00015672,2]
[346502358,1735011114356,-500.0,0.000157,5]
[346502359,1735011114365,-1150.83837441,0.00015726,2]
[346502360,1735011114374,-3000.0,0.0001574,2]
[346502361,1735011114384,-6631.00342435,0.00015742,2]
[346502362,1735011114393,-1150.83837441,0.00015781,2]
[346502363,1735011114402,-186.17237987,0.00015784,2]
[346502364,1735011114411,-12682.02927159,0.00015784,2]
[346502365,1735011114420,-1057.0,0.00015786,2]
[346502366,1735011114430,-553.36804501,0.00015789,2]
[346502367,1735011114438,-168.0983124,0.00015789,2]
[346502368,1735011114448,-202.6,0.000158,2]
[346502369,1735011114458,-800.0,0.000158,5]
[346502370,1735011114467,-306.08,0.0001581,2]
[346502371,1735011114477,-4000.0,0.00015848,3]
[346502372,1735011114487,-1150.83837441,0.00015863,2]
[346502373,1735011114497,-1852.82,0.00015884,2]
[346502374,1735011114506,-500.0,0.00015884,2]
[346502375,1735011114515,-500.0,0.00015884,2]
[346502376,1735011114526,-2606.93,0.00015884,2]
[346502377,1735011114535,-2999.55,0.00015884,2]
[346502378,1735011114544,-1157.43,0.00015884,2]
[346502379,1735011114554,-606.11,0.00015884,2]
[346502380,1735011114564,-6426.45,0.00015884,2]
[346502381,1735011114576,-1172.56,0.00015884,2]
[346502382,1735011114586,-4243.49,0.00015884,2]
[346502383,1735011114595,-1763.65,0.00015884,2]
[346502384,1735011114605,-1114.010296,0.00015884,2]
[346502385,1735011114614,-1609.76,0.00015884,2]
[346502386,1735011114624,-1255.913597,0.00015884,2]
[346502387,1735011114633,-3445.2,0.00015884,2]
[346502388,1735011114642,-2865.43,0.00015884,2]
[346502389,1735011114651,-9494.21,0.00015884,2]
[346502390,1735011114660,-875.1,0.00015884,2]
[346502391,1735011114669,-9217.19,0.00015884,2]
[346502392,1735011114678,-2293.91,0.00015884,2]
[346502393,1735011114688,-1133.56,0.00015884,2]
[346502394,1735011114697,-500.0,0.00015884,2]
[346502395,1735011114707,-1695.02,0.00015884,2]
[346502396,1735011114716,-1707.6,0.00015884,2]
[346502397,1735011114726,-2242.13,0.00015884,2]
[346502398,1735011114735,-2349.54,0.00015884,2]
[346502399,1735011114746,-1817.06,0.00015884,2]
[346502400,1735011114757,-3224.69,0.00015884,2]
[346502401,1735011114766,-1391.02,0.00015884,2]
[346502402,1735011114775,-2776.88,0.00015884,2]
[346502403,1735011114784,-3101.23,0.00015884,2]
[346502404,1735011114794,-4039.9,0.00015884,2]
[346502405,1735011114803,-2093.55,0.00015884,2]
[346502406,1735011114812,-7546.19,0.00015884,2]
[346502407,1735011114822,-500.0,0.00015884,2]
[346502408,1735011114831,-6150.66,0.00015884,2]
[346502409,1735011114841,-824.32,0.00015884,2]
[346502410,1735011114850,-1376.04,0.00015886,2]
[346502411,1735011114859,-500.0,0.00015886,2]
[346502412,1735011114868,-500.0,0.00015886,2]
[346502413,1735011114877,-603.13,0.00015886,2]
[346502414,1735011114886,-286.61251003,0.00015886,2]
[346502415,1735011114896,-500.0,0.00015886,2]
[346502416,1735011114905,-500.0,0.00015886,2]
[346502417,1735011114915,-714.04,0.00015886,2]
[346502418,1735011114924,-518.45,0.00015886,2]
[346502419,1735011114933,-623.37,0.00015886,2]
[346502420,1735011114942,-500.0,0.00015886,2]
[346502421,1735011114952,-638.22,0.00015886,2]
[346502422,1735011114961,-500.0,0.00015886,2]
[346502423,1735011114970,-500.0,0.00015886,2]
[346502424,1735011114980,-803.42,0.00015886,2]
[346502425,1735011114989,-500.0,0.00015886,2]
[346502426,1735011114999,-500.0,0.00015886,2]
[346502427,1735011115008,-833.06,0.00015886,2]
[346502428,1735011115018,-792.49,0.00015886,2]
[346502429,1735011115027,-500.0,0.00015886,2]
[346502430,1735011115036,-627.06036445,0.00015886,2]
[346502431,1735011115046,-764.06,0.00015886,2]
[346502432,1735011115055,-500.0,0.00015886,2]
[346502433,1735011115065,-500.0,0.00015886,2]
[346502434,1735011115074,-500.0,0.00015886,2]
[346502435,1735011115084,-500.0,0.00015886,2]
[346502436,1735011115094,-925.7,0.00015886,2]
[346502437,1735011115103,-500.0,0.00015886,2]
[346502438,1735011115113,-500.0,0.00015886,2]
[346502439,1735011115123,-500.0,0.00015886,2]
[346502440,1735011115132,-633.33,0.00015886,2]
[346502441,1735011115141,-500.0,0.00015886,2]
[346502442,1735011115152,-500.0,0.00015886,2]
[346502443,1735011115161,-559.32,0.00015886,2]
[346502444,1735011115170,-500.0,0.00015886,2]
[346502445,1735011115180,-500.0,0.00015886,2]
[346502446,1735011115189,-500.0,0.00015886,2]
[346502447,1735011115199,-756.47,0.00015886,2]
[346502448,1735011115208,-500.0,0.00015886,2]
[346502449,1735011115218,-500.0,0.00015886,2]
[346502450,1735011115227,-500.0,0.00015886,2]
[346502451,1735011115237,-500.0,0.00015886,2]
[346502452,1735011115246,-652.18,0.00015886,2]
[346502453,1735011115255,-500.0,0.00015886,2]
[346502454,1735011115265,-500.0,0.00015886,2]
[346502455,1735011115274,-500.0,0.00015886,2]
[346502456,1735011115284,-1162.34,0.00015886,2]
[346502457,1735011115294,-657.02,0.00015886,2]
[346502458,1735011115303,-500.0,0.00015886,2]
[346502459,1735011115313,-217.66611098,0.00015886,2]
[346502460,1735011115323,-500.0,0.00015886,2]
[346502461,1735011115333,-500.0,0.00015886,2]
[346502462,1735011115343,-750.75,0.00015886,2]
[346502463,1735011115353,-843.1,0.00015886,2]
[346502464,1735011115363,-2974.82,0.00015886,2]
[346502465,1735011115373,-1035.17,0.00015886,2]
[346502466,1735011115384,-12237.72,0.00015886,2]
[346502467,1735011115394,-500.0,0.00015886,2]
[346502468,1735011115404,-1473.91,0.00015886,2]
[346502469,1735011115414,-724.91,0.00015886,2]
[346502470,1735011115425,-1085.64,0.00015886,2]
[346502471,1735011115436,-2487.66,0.00015886,2]
[346502472,1735011115446,-855.98,0.00015886,2]
[346502473,1735011115456,-772.32,0.00015886,2]
[346502474,1735011115465,-1607.65,0.00015886,2]
[346502475,1735011115475,-1245.31,0.00015886,2]
[346502476,1735011115485,-2261.57,0.00015886,2]
[346502477,1735011115495,-793.8,0.00015886,2]
[346502478,1735011115505,-500.0,0.00015886,2]
[346502479,1735011115515,-566.83,0.00015886,2]
[346502480,1735011115525,-1841.26,0.00015886,2]
[346502481,1735011115535,-500.0,0.00015886,2]
[346502482,1735011115544,-1675.73,0.00015886,2]
[346502483,1735011115554,-500.0,0.00015886,2]
[346502484,1735011115563,-1457.13,0.00015886,2]
[346502485,1735011115576,-500.0,0.00015886,2]
[346502486,1735011115587,-1294.02,0.00015886,2]
[346502487,1735011115596,-1344.13,0.00015886,2]
[346502488,1735011115606,-1732.9,0.00015886,2]
[346502489,1735011115615,-500.0,0.00015886,2]
[346502490,1735011115626,-913.87,0.00015886,2]
[346502491,1735011115636,-1087.59,0.00015886,2]
[346502492,1735011115645,-500.0,0.00015886,2]
[346502493,1735011115657,-303.63327296,0.00015886,2]
[346502494,1735011115667,-1777.07,0.00015886,2]
[346502495,1735011115676,-500.0,0.00015886,2]
[346502496,1735011115686,-500.0,0.00015886,2]
[346502497,1735011115695,-1013.56,0.00015886,2]
[346502498,1735011115704,-1109.62,0.00015886,2]
[346502499,1735011115712,-3611.54,0.00015886,2]
[346502500,1735011115722,-500.0,0.00015886,2]
[346502501,1735011115731,-500.0,0.00015886,2]
[346502502,1735011115741,-700.34,0.00015886,2]
[346502503,1735011115750,-1340.51,0.00015886,2]
[346502504,1735011115760,-1798.91,0.00015886,2]
[346502505,1735011115770,-500.0,0.00015886,2]
[346502506,1735011115780,-1108.03,0.00015886,2]
[346502507,1735011115790,-6420.88,0.00015886,2]
[346502508,1735011115800,-1834.74,0.00015886,2]
[346502509,1735011115809,-257.91729831,0.00015886,2]
[346502510,1735011115819,-1753.2,0.00015886,2]
[346502511,1735011115829,-3473.97,0.00015886,2]
[346502512,1735011115838,-500.0,0.00015886,2]
[346502513,1735011115848,-1098.98,0.00015886,2]
[346502514,1735011115857,-500.0,0.00015887,2]
[346502515,1735011115867,-500.0,0.00015887,2]
[346502516,1735011115877,-500.0,0.00015887,2]
[346502517,1735011115887,-500.0,0.00015887,2]
[346502518,1735011115896,-500.0,0.00015887,2]
[346502519,1735011115906,-500.0,0.00015887,2]
[346502520,1735011115916,-500.0,0.00015887,2]
[346502521,1735011115925,-500.0,0.00015887,2]
[346502522,1735011115935,-500.0,0.00015887,2]
[346502523,1735011115944,-500.0,0.00015887,2]
[346502524,1735011115954,-500.0,0.00015887,2]
[346502525,1735011115964,-500.0,0.00015887,2]
[346502526,1735011115973,-471.5255327,0.00015887,2]
[346502527,1735011115982,-500.0,0.00015887,2]
[346502528,1735011115991,-500.0,0.00015887,2]
[346502529,1735011116001,-500.0,0.00015887,2]
[346502530,1735011116010,-500.0,0.00015887,2]
[346502531,1735011116020,-500.0,0.00015887,2]
[346502532,1735011116029,-500.0,0.00015887,2]
[346502533,1735011116038,-500.0,0.00015887,2]
[346502534,1735011116047,-500.0,0.00015887,2]
[346502535,1735011116058,-500.0,0.00015887,2]
[346502536,1735011116068,-500.0,0.00015887,2]
[346502537,1735011116077,-500.0,0.00015887,2]
[346502538,1735011116087,-500.0,0.00015887,2]
[346502539,1735011116096,-500.0,0.00015887,2]
[346502540,1735011116106,-500.0,0.00015887,2]
[346502541,1735011116115,-500.0,0.00015887,2]
[346502542,1735011116125,-500.0,0.00015887,2]
[346502543,1735011116135,-500.0,0.00015887,2]
[346502544,1735011116144,-500.0,0.00015887,2]
[346502545,1735011116154,-500.0,0.00015887,2]
[346502546,1735011116163,-500.0,0.00015887,2]
[346502547,1735011116173,-500.0,0.00015887,2]
[346502548,1735011116183,-500.0,0.00015887,2]
[346502549,1735011116193,-500.0,0.00015887,2]
[346502550,1735011116203,-370.53655804,0.00015887,2]
[346502551,1735011116212,-500.0,0.00015887,2]
[346502552,1735011116224,-500.0,0.00015887,2]
[346502553,1735011116233,-500.0,0.00015887,2]
[346502554,1735011116242,-500.0,0.00015887,2]
[346502555,1735011116251,-500.0,0.00015887,2]
[346502556,1735011116261,-500.0,0.00015887,2]
[346502557,1735011116271,-500.0,0.00015887,2]
[346502558,1735011116281,-500.0,0.00015887,2]
[346502559,1735011116290,-615.62166774,0.00015887,2]
[346502560,1735011116300,-500.0,0.00015887,2]
[346502561,1735011116310,-500.0,0.00015887,2]
[346502562,1735011116322,-500.0,0.00015887,2]
[346502563,1735011116332,-500.0,0.00015887,2]
[346502564,1735011116342,-500.0,0.00015887,2]
[346502565,1735011116351,-500.0,0.00015887,2]
[346502566,1735011116361,-500.0,0.00015887,2]
[346502567,1735011116371,-500.0,0.00015887,2]
[346502568,1735011116381,-500.0,0.00015887,2]
[346502569,1735011116390,-500.0,0.00015887,2]
[346502570,1735011116400,-500.0,0.00015887,2]
[346502571,1735011116409,-500.0,0.00015887,2]
[346502572,1735011116419,-500.0,0.00015887,2]
[346502573,1735011116428,-500.0,0.00015887,2]
[346502574,1735011116438,-500.0,0.00015887,2]
[346502575,1735011116448,-500.0,0.00015887,2]
[346502576,1735011116457,-500.0,0.00015887,2]
[346502577,1735011116466,-500.0,0.00015887,2]
[346502578,1735011116476,-500.0,0.00015887,2]
[346502579,1735011116485,-2197.64,0.00015887,2]
[346502580,1735011116495,-500.0,0.00015887,2]
[346502581,1735011116505,-500.0,0.00015887,2]
[346502582,1735011116514,-500.0,0.00015887,2]
[346502583,1735011116524,-500.0,0.00015887,2]
[346502584,1735011116533,-500.0,0.00015887,2]
[346502585,1735011116543,-924.29,0.00015887,2]
[346502586,1735011116553,-241.98,0.00015887,2]
[346502587,1735011116562,-500.0,0.00015887,2]
[346502588,1735011116575,-500.0,0.00015887,2]
[346502589,1735011116587,-3800.89,0.00015887,2]
[346502590,1735011116596,-500.0,0.00015887,2]
[346502591,1735011116608,-500.0,0.00015887,2]
[346502592,1735011116619,-500.0,0.00015887,2]
[346502593,1735011116628,-4111.27,0.00015887,2]
[346502594,1735011116638,-3362.87,0.00015887,2]
[346502595,1735011116648,-500.0,0.00015887,2]
[346502596,1735011116657,-500.0,0.00015887,2]
[346502597,1735011116667,-500.0,0.00015887,2]
[346502598,1735011116676,-500.0,0.00015887,2]
[346502599,1735011116686,-500.0,0.00015887,2]
[346502600,1735011116695,-500.0,0.00015887,2]
[346502601,1735011116705,-500.0,0.00015887,2]
[346502602,1735011116715,-944.42,0.00015887,2]
[346502603,1735011116725,-500.0,0.00015887,2]
[346502604,1735011116734,-500.0,0.00015887,2]
[346502605,1735011116744,-578.45,0.00015887,2]
[346502606,1735011116753,-500.0,0.00015887,2]
[346502607,1735011116763,-1032.77,0.00015887,2]
[346502608,1735011116772,-463.89399656,0.00015887,2]
[346502609,1735011116781,-3197.19,0.00015887,2]
[346502610,1735011116791,-500.0,0.00015887,2]
[346502611,1735011116800,-500.0,0.00015887,2]
[346502612,1735011116809,-500.0,0.00015887,2]
[346502613,1735011116822,-500.0,0.00015887,2]
[346502614,1735011116832,-893.07,0.00015887,2]
[346502615,1735011116842,-500.0,0.00015887,2]
[346502616,1735011116851,-595.59294909,0.00015887,2]
[346502617,1735011116861,-500.0,0.00015887,2]
[346502618,1735011116870,-831.96,0.00015887,2]
[346502619,1735011116880,-1264.9,0.00015887,2]
[346502620,1735011116889,-500.0,0.00015887,2]
[346502621,1735011116899,-500.0,0.00015887,2]
[346502622,1735011116908,-500.0,0.00015887,2]
[346502623,1735011116918,-3791.3,0.00015887,2]
[346502624,1735011116927,-500.0,0.00015887,2]
[346502625,1735011116937,-500.0,0.00015887,2]
[346502626,1735011116946,-1468.04,0.00015887,2]
[346502627,1735011116955,-618.66,0.00015887,2]
[346502628,1735011116965,-500.0,0.00015887,2]
[346502629,1735011116974,-500.0,0.00015887,2]
[346502630,1735011116983,-880.68,0.00015887,2]
[346502631,1735011116993,-4498.81,0.00015887,2]
[346502632,1735011117003,-980.14,0.00015887,2]
[346502633,1735011117013,-500.0,0.00015887,2]
[346502634,1735011117022,-845.95,0.00015887,2]
[346502635,1735011117031,-768.63,0.00015887,2]
[346502636,1735011117041,-1633.61,0.00015887,2]
[346502637,1735011117050,-10724.41,0.00015887,2]
[346502638,1735011117060,-500.0,0.00015887,2]
[346502639,1735011117073,-1907.04,0.00015887,2]
[346502640,1735011117083,-3409.97,0.00015887,2]
[346502641,1735011117092,-500.0,0.00015887,2]
[346502642,1735011117103,-500.0,0.00015887,2]
[346502643,1735011117112,-500.0,0.00015887,2]
[346502644,1735011117122,-3144.7,0.00015887,2]
[346502645,1735011117132,-7767.4,0.00015887,2]
[346502646,1735011117142,-3102.39,0.00015887,2]
[346502647,1735011117152,-2500.86,0.00015887,2]
[346502648,1735011117161,-16025.73,0.00015887,2]
[346502649,1735011117171,-500.0,0.00015887,2]
[346502650,1735011117180,-6082.71,0.00015887,2]
[346502651,1735011117190,-500.0,0.00015887,2]
[346502652,1735011117199,-500.0,0.00015887,2]
[346502653,1735011117209,-2316.02,0.00015887,2]
[346502654,1735011117218,-1193.06,0.00015887,2]
[346502655,1735011117227,-500.0,0.00015887,2]
[346502656,1735011117236,-500.0,0.00015887,2]
[346502657,1735011117246,-500.0,0.00015887,2]
[346502658,1735011117256,-500.0,0.00015887,2]
[346502659,1735011117265,-500.0,0.00015887,2]
[346502660,1735011117275,-500.0,0.00015887,2]
[346502661,1735011117285,-599.65,0.00015887,2]
[346502662,1735011117294,-500.0,0.00015887,2]
[346502663,1735011117304,-500.0,0.00015887,2]
[346502664,1735011117314,-500.0,0.00015888,2]
[346502665,1735011117326,-500.0,0.00015888,2]
[346502666,1735011117336,-500.0,0.00015888,2]
[346502667,1735011117345,-500.0,0.00015888,2]
[346502668,1735011117355,-500.0,0.00015888,2]
[346502669,1735011117365,-500.0,0.00015888,2]
[346502670,1735011117375,-500.0,0.00015888,2]
[346502671,1735011117384,-511.03,0.00015888,2]
[346502672,1735011117394,-500.0,0.00015888,2]
[346502673,1735011117404,-500.0,0.00015888,2]
[346502674,1735011117413,-500.0,0.00015888,2]
[346502675,1735011117423,-500.0,0.00015888,2]
[346502676,1735011117432,-500.0,0.00015888,2]
[346502677,1735011117442,-500.0,0.00015888,2]
[346502678,1735011117452,-500.0,0.00015888,2]
[346502679,1735011117462,-500.0,0.00015888,2]
[346502680,1735011117471,-500.0,0.00015888,2]
[346502681,1735011117481,-500.0,0.00015888,2]
[346502682,1735011117491,-500.0,0.00015888,2]
[346502683,1735011117501,-500.0,0.00015888,2]
[346502684,1735011117510,-500.0,0.00015888,2]
[346502685,1735011117520,-500.0,0.00015888,2]
[346502686,1735011117530,-500.0,0.00015888,2]
[346502687,1735011117540,-500.0,0.00015888,2]
[346502688,1735011117551,-208.73591601,0.00015888,2]
[346502689,1735011117561,-500.0,0.00015888,2]
[346502690,1735011117572,-500.0,0.00015888,2]
[346502691,1735011117587,-500.0,0.00015888,2]
[346502692,1735011117598,-500.0,0.00015888,2]
[346502693,1735011117609,-500.0,0.00015888,2]
[346502694,1735011117620,-511.22,0.00015888,2]
[346502695,1735011117629,-500.0,0.00015888,2]
[346502696,1735011117639,-500.0,0.00015888,2]
[346502697,1735011117649,-963.35,0.00015888,2]
[346502698,1735011117660,-500.0,0.00015888,2]
[346502699,1735011117671,-817.97,0.00015888,2]
[346502700,1735011117680,-1137.67,0.00015888,2]
[346502701,1735011117690,-916.16,0.00015888,2]
[346502702,1735011117699,-500.0,0.00015888,2]
[346502703,1735011117708,-876.13,0.00015888,2]
[346502704,1735011117718,-500.0,0.00015888,2]
[346502705,1735011117728,-850.87,0.00015888,2]
[346502706,1735011117737,-809.33,0.00015888,2]
[346502707,1735011117747,-576.68,0.00015888,2]
[346502708,1735011117757,-500.0,0.00015888,2]
[346502709,1735011117766,-680.75,0.00015888,2]
[346502710,1735011117776,-1535.16,0.00015888,2]
[346502711,1735011117785,-500.0,0.00015888,2]
[346502712,1735011117795,-500.0,0.00015888,2]
[346502713,1735011117804,-835.68,0.00015888,2]
[346502714,1735011117814,-500.0,0.00015888,2]
[346502715,1735011117825,-11706.4,0.00015888,2]
[346502716,1735011117834,-659.12,0.00015888,2]
[346502717,1735011117844,-500.0,0.00015888,2]
[346502718,1735011117854,-653.62,0.00015888,2]
[346502719,1735011117863,-534.76,0.00015888,2]
[346502720,1735011117873,-1707.85,0.00015888,2]
[346502721,1735011117882,-500.0,0.00015888,2]
[346502722,1735011117892,-1321.6,0.00015888,2]
[346502723,1735011117902,-980.51,0.00015888,2]
[346502724,1735011117911,-1216.74,0.00015888,2]
[346502725,1735011117921,-941.42,0.00015888,2]
[346502726,1735011117930,-2484.72,0.00015888,2]
[346502727,1735011117940,-824.25,0.00015888,2]
[346502728,1735011117949,-766.19,0.00015888,2]
[346502729,1735011117958,-500.0,0.00015888,2]
[346502730,1735011117968,-500.0,0.00015888,2]
[346502731,1735011117978,-508.99,0.00015888,2]
[346502732,1735011117987,-1000.0,0.00015888,2]
[346502733,1735011117997,-500.0,0.00015888,2]
[346502734,1735011118006,-1396.04,0.00015888,2]
[346502735,1735011118016,-500.0,0.00015888,2]
[346502736,1735011118025,-635.05,0.00015888,2]
[346502737,1735011118034,-789.1,0.00015888,2]
[346502738,1735011118044,-500.0,0.00015888,2]
[346502739,1735011118053,-2682.71,0.00015888,2]
[346502740,1735011118063,-500.0,0.00015888,2]
[346502741,1735011118073,-940.58,0.00015888,2]
[346502742,1735011118083,-669.82,0.00015888,2]
[346502743,1735011118093,-1941.26,0.00015888,2]
[346502744,1735011118102,-575.68,0.00015888,2]
[346502745,1735011118112,-151.0,0.00015888,2]
[346502746,1735011118121,-1285.44,0.00015888,2]
[346502747,1735011118131,-734.43,0.00015888,2]
[346502748,1735011118140,-500.0,0.00015888,2]
[346502749,1735011118150,-1247.11,0.00015888,2]
[346502750,1735011118160,-500.0,0.00015888,2]
[346502751,1735011118169,-1338.65,0.00015888,2]
[346502752,1735011118179,-1230.35,0.00015888,2]
[346502753,1735011118189,-500.0,0.00015888,2]
[346502754,1735011118199,-543.55,0.00015888,2]
[346502755,1735011118208,-500.0,0.00015888,2]
[346502756,1735011118222,-649.45,0.00015888,2]
[346502757,1735011118231,-500.0,0.00015888,2]
[346502758,1735011118240,-198.12869601,0.00015889,2]
[346502759,1735011118250,-500.0,0.00015889,2]
[346502760,1735011118259,-500.0,0.00015889,2]
[346502761,1735011118269,-500.0,0.00015889,2]
[346502762,1735011118279,-500.0,0.00015889,2]
[346502763,1735011118289,-500.0,0.00015889,2]
[346502764,1735011118299,-500.0,0.00015889,2]
[346502765,1735011118309,-500.0,0.00015889,2]
[346502766,1735011118319,-500.0,0.00015889,2]
[346502767,1735011118329,-510.43016372,0.00015889,2]
[346502768,1735011118339,-500.0,0.00015889,2]
[346502769,1735011118420,-500.0,0.00015889,2]
[346502770,1735011118430,-500.0,0.00015889,2]
[346502771,1735011118440,-500.0,0.00015889,2]
[346502772,1735011118449,-500.0,0.00015889,2]
[346502773,1735011118459,-500.0,0.00015889,2]
[346502774,1735011118470,-500.0,0.00015889,2]
[346502775,1735011118479,-500.0,0.00015889,2]
[346502776,1735011118489,-500.0,0.00015889,2]
[346502777,1735011118499,-500.0,0.00015889,2]
[346502778,1735011118509,-500.0,0.00015889,2]
[346502779,1735011118519,-500.0,0.00015889,2]
[346502780,1735011118529,-500.0,0.00015889,2]
[346502781,1735011118540,-500.0,0.00015889,2]
[346502782,1735011118550,-500.0,0.00015889,2]
[346502783,1735011118559,-500.0,0.00015889,2]
[346502784,1735011118570,-500.0,0.00015889,2]
[346502785,1735011118582,-500.0,0.00015889,2]
[346502786,1735011118591,-500.0,0.00015889,2]
[346502787,1735011118601,-500.0,0.00015889,2]
[346502788,1735011118611,-500.0,0.00015889,2]
[346502789,1735011118622,-509.34,0.00015889,2]
[346502790,1735011118631,-500.0,0.00015889,2]
[346502791,1735011118641,-500.0,0.00015889,2]
[346502792,1735011118651,-500.0,0.00015889,2]
[346502793,1735011118660,-160.51274848,0.00015889,2]
[346502794,1735011118671,-500.0,0.00015889,2]
[346502795,1735011118681,-500.0,0.00015889,2]
[346502796,1735011118691,-594.29,0.00015889,2]
[346502797,1735011118700,-500.0,0.00015889,2]
[346502798,1735011118709,-670.25,0.00015889,2]
[346502799,1735011118719,-553.58,0.00015889,2]
[346502800,1735011118728,-1203.72,0.00015889,2]
[346502801,1735011118738,-500.0,0.00015889,2]
[346502802,1735011118748,-500.0,0.00015889,2]
[346502803,1735011118757,-500.0,0.00015889,2]
[346502804,1735011118767,-500.0,0.00015889,2]
[346502805,1735011118777,-500.0,0.00015889,2]
[346502806,1735011118787,-627.9,0.00015889,2]
[346502807,1735011118796,-500.0,0.00015889,2]
[346502808,1735011118806,-500.0,0.00015889,2]
[346502809,1735011118815,-500.0,0.00015889,2]
[346502810,1735011118826,-500.0,0.00015889,2]
[346502811,1735011118836,-500.0,0.00015889,2]
[346502812,1735011118846,-1878.0,0.0001589,2]
[346502813,1735011118855,-1075.0,0.0001589,2]
[346502814,1735011118864,-2048.58,0.0001589,2]
[346502815,1735011118874,-1779.8,0.0001589,2]
[346502816,1735011118884,-1311.88,0.0001589,2]
[346502817,1735011118893,-3042.34,0.0001589,2]
[346502818,1735011118903,-4145.26,0.0001589,2]
[346502819,1735011118912,-2510.92,0.0001589,2]
[346502820,1735011118921,-2165.74,0.0001589,2]
[346502821,1735011118931,-4218.72,0.0001589,2]
[346502822,1735011118940,-2191.99,0.0001589,2]
[346502823,1735011118950,-2002.38,0.0001589,2]
[346502824,1735011118961,-426.40488591,0.0001589,2]
[346502825,1735011118970,-500.0,0.0001589,2]
[346502826,1735011118980,-683.71,0.0001589,2]
[346502827,1735011118989,-500.0,0.0001589,2]
[346502828,1735011118999,-500.0,0.0001589,2]
[346502829,1735011119009,-18977.0,0.0001589,2]
[346502830,1735011119022,-760.03,0.0001589,2]
[346502831,1735011119033,-1641.11,0.0001589,2]
[346502832,1735011119043,-500.0,0.0001589,2]
[346502833,1735011119052,-500.0,0.0001589,2]
[346502834,1735011119061,-500.0,0.0001589,2]
[346502835,1735011119072,-1000.0,0.000159,5]
[346502836,1735011119082,-1082.31050602,0.00015919,2]
[346502837,1735011119092,-250.0,0.0001593,2]